fUST/lending_fUST_20240421
["ID","MTS","AMOUNT","RATE_DAILY","PERIOD"]
[323105228,1713666640032,-151.0,0.00021996,2]
[323105229,1713666640041,-151.0,0.00021996,2]
[323105230,1713666640051,-151.0,0.00021996,2]
[323105231,1713666640060,-285.22719,0.00021996,2]
[323105232,1713666640069,-285.22719,0.00021996,2]
[323105233,1713666640079,-352.918005,0.00021996,2]
[323105234,1713666640088,-352.918005,0.00021996,2]
[323105235,1713666640097,-319.458457,0.00021996,2]
[323105236,1713666640108,-319.458457,0.00021996,2]
[323105237,1713666640118,-1860.58,0.00021996,2]
[323105238,1713666640128,-450.040401,0.00021996,2]
[323105240,1713666640137,-450.040401,0.00021996,2]
[323105242,1713666640147,-227.009928,0.00021996,2]
[323105244,1713666640156,-227.009928,0.00021996,2]
[323105246,1713666640165,-151.0,0.00021996,2]
[323105247,1713666640175,-151.0,0.00021996,2]
[323105249,1713666640184,-1264.109014,0.00021996,2]
[323105251,1713666640193,-1264.109014,0.00021996,2]
[323105253,1713666640202,-151.0,0.00021996,2]
[323105255,1713666640211,-248.8,0.00021997,2]
[323105258,1713666640220,-500.0,0.00021999,2]
[323105259,1713666640231,-500.0,0.00021999,2]
[323105260,1713666640241,-500.0,0.00021999,2]
[323105261,1713666640250,-2580.78,0.00021999,2]
[323105262,1713666640259,-2580.78,0.00021999,2]
[323105263,1713666640268,-2580.78,0.00021999,2]
[323105264,1713666640277,-152.063389,0.00021999,2]
[323105265,1713666640286,-151.0,0.00021999,2]
[323105266,1713666640295,-161.110096,0.00021999,2]
[323105267,1713666640304,-151.0,0.00021999,2]
[323105268,1713666640313,-285.22719,0.00021999,2]
[323105269,1713666640322,-285.22719,0.00021999,2]
[323105270,1713666640332,-352.918005,0.00021999,2]
[323105271,1713666640412,-352.918005,0.00021999,2]
[323105272,1713666640422,-319.458457,0.00021999,2]
[323105273,1713666640431,-319.458457,0.00021999,2]
[323105274,1713666640442,-7111.99,0.00021999,2]
[323105275,1713666640453,-7111.99,0.00021999,2]
[323105276,1713666640464,-7111.99,0.00021999,2]
[323105277,1713666640475,-1860.58,0.00021999,2]
[323105278,1713666640485,-1860.58,0.00021999,2]
[323105279,1713666640494,-1860.58,0.00021999,2]
[323105280,1713666640503,-450.040401,0.00021999,2]
[323105281,1713666640511,-450.040401,0.00021999,2]
[323105282,1713666640521,-227.009928,0.00021999,2]
[323105283,1713666640530,-227.009928,0.00021999,2]
[323105284,1713666640539,-151.0,0.00021999,2]
[323105285,1713666640548,-209.713087,0.00021999,2]
[323105286,1713666640557,-1264.109014,0.00021999,2]
[323105287,1713666640567,-1264.109014,0.00021999,2]
[323105288,1713666640575,-151.0,0.00021999,2]
[323105289,1713666640585,-21672.56442339,0.00022,2]
[323105290,1713666640712,-972.0795421,0.00022,2]
[323105291,1713666640843,-1005.28391519,0.00022,2]
[323105292,1713666640855,-3538.32567722,0.00022,2]
[323105358,1713666643183,-500.0,0.00021917,2]
[323105360,1713666643192,-43.8492661,0.00021917,2]
[323105367,1713666643242,-456.1507339,0.00021917,2]
[323105369,1713666643251,-127.93392588,0.00022,2]
[323105643,1713667044684,677.34782503,0.00019899,2]
[323105644,1713667299248,546.48784265,0.00024,120]
[323105645,1713667345950,451.56521669,0.00019899,2]
[323105646,1713667361027,2733.5461631,0.00020915,2]
[323105686,1713667832668,-1550.19478705,0.00021796,2]
[323105687,1713667832677,-1442.22865105,0.00021797,2]
[323105688,1713667832686,-1311.22668928,0.00021798,2]
[323105689,1713667832696,-623.53234901,0.00021798,2]
[323105690,1713667832705,-301.04347779,0.000219,2]
[323105691,1713667832714,-300.0,0.00021912,2]
[323105692,1713667832723,-300.0,0.00021912,2]
[323105693,1713667832732,-2097.87546031,0.00021913,2]
[323105694,1713667832741,-165.88669022,0.00021914,2]
[323105695,1713667832750,-292.21448362,0.00021914,2]
[323105696,1713667832759,-228.61369705,0.00021914,2]
[323105697,1713667832773,-188.71046692,0.00021914,2]
[323105698,1713667832782,-188.7859135,0.00021915,2]
[323105699,1713667832794,-36931.5438464,0.00021915,2]
[323105700,1713667832803,-35946.67948937,0.00021915,2]
[323105735,1713667838394,-36586.94719662,0.00021915,2]
[323105736,1713667838406,-4000.0,0.00021916,2]
[323105737,1713667838421,-4000.0,0.00021916,2]
[323105738,1713667838435,-4000.0,0.00021916,2]
[323105739,1713667838447,-4000.0,0.00021916,2]
[323105740,1713667838459,-4000.0,0.00021916,2]
[323105741,1713667838472,-4000.0,0.00021916,2]
[323105742,1713667838485,-2535.03710403,0.00021916,2]
[323105743,1713667838499,-496.65029045,0.00021917,2]
[323105744,1713667838512,-508.61396081,0.00021917,2]
[323105745,1713667838527,-284.52224066,0.00021917,2]
[323105746,1713667838541,-500.0,0.00021917,2]
[323105747,1713667838551,-500.0,0.00021917,2]
[323105748,1713667838562,-500.0,0.00021917,2]
[323105749,1713667838574,-500.0,0.00021917,2]
[323105750,1713667838587,-581.69196506,0.00021917,2]
[323105751,1713667838599,-500.0,0.00021917,2]
[323105752,1713667838611,-500.0,0.00021917,2]
[323105753,1713667838622,-500.0,0.00021917,2]
[323105754,1713667838633,-500.0,0.00021917,2]
[323105755,1713667838644,-500.0,0.00021917,2]
[323105756,1713667838656,-500.0,0.00021917,2]
[323105757,1713667838668,-500.0,0.00021917,2]
[323105758,1713667838679,-500.0,0.00021917,2]
[323105759,1713667838691,-500.0,0.00021917,2]
[323105760,1713667838702,-502.51622234,0.00021917,2]
[323105761,1713667838714,-500.0,0.00021917,2]
[323105762,1713667838726,-500.0,0.00021917,2]
[323105763,1713667838737,-500.0,0.00021917,2]
[323105764,1713667838749,-500.0,0.00021917,2]
[323105765,1713667838759,-177.1510418,0.00021917,2]
[323105766,1713667838774,-501.65022449,0.00021917,2]
[323105767,1713667838786,-500.0,0.00021917,2]
[323105768,1713667838801,-500.0,0.00021917,2]
[323105769,1713667838813,-500.0,0.00021917,2]
[323105770,1713667838825,-500.0,0.00021917,2]
[323105771,1713667838838,-500.0,0.00021917,2]
[323105772,1713667838851,-500.0,0.00021917,2]
[323105773,1713667838898,-500.0,0.00021917,2]
[323105774,1713667838909,-505.73050993,0.00021917,2]
[323105775,1713667838923,-500.0,0.00021917,2]
[323105776,1713667838935,-500.62222677,0.00021917,2]
[323105777,1713667838947,-503.57969835,0.00021917,2]
[323105778,1713667838961,-500.38493984,0.00021917,2]
[323105779,1713667838973,-500.0,0.00021917,2]
[323105780,1713667838984,-500.0,0.00021917,2]
[323105781,1713667838995,-458.38207011,0.00021917,2]
[323105782,1713667839007,-503.27887066,0.00021917,2]
[323105783,1713667839020,-500.0,0.00021917,2]
[323105784,1713667839031,-502.84273174,0.00021917,2]
[323105785,1713667839043,-565.63,0.00021917,2]
[323105786,1713667839056,-199.78791443,0.00021917,2]
[323105787,1713667839069,-500.75562553,0.00021917,2]
[323105788,1713667839080,-500.0,0.00021917,2]
[323105789,1713667839091,-500.0,0.00021917,2]
[323105790,1713667839103,-500.0,0.00021917,2]
[323105791,1713667839115,-333.70740405,0.00021917,2]
[323105792,1713667839126,-502.65494889,0.00021917,2]
[323105793,1713667839137,-1005.2,0.00021917,2]
[323105794,1713667839149,-500.0,0.00021917,2]
[323105795,1713667839160,-500.0,0.00021917,2]
[323105796,1713667839170,-500.0,0.00021917,2]
[323105797,1713667839179,-500.0,0.00021917,2]
[323105798,1713667839316,-500.0,0.00021917,2]
[323105799,1713667839331,-502.79169155,0.00021917,2]
[323105800,1713667839340,-500.0,0.00021917,2]
[323105801,1713667839349,-500.0,0.00021917,2]
[323105802,1713667839358,-500.0,0.00021917,2]
[323105803,1713667839367,-501.3447311,0.00021917,2]
[323105804,1713667839377,-500.0,0.00021917,2]
[323105805,1713667839386,-500.0,0.00021917,2]
[323105806,1713667839396,-500.0,0.00021917,2]
[323105807,1713667839405,-515.02762525,0.00021917,2]
[323105808,1713667839414,-500.0,0.00021917,2]
[323105809,1713667839423,-500.0,0.00021917,2]
[323105810,1713667839433,-500.0,0.00021917,2]
[323105811,1713667839442,-500.0,0.00021917,2]
[323105812,1713667839451,-503.63887754,0.00021917,2]
[323105813,1713667839461,-500.0,0.00021917,2]
[323105814,1713667839470,-500.0,0.00021917,2]
[323105815,1713667839479,-1288.07,0.00021917,2]
[323105816,1713667839489,-1288.07,0.00021917,2]
[323105817,1713667839498,-1288.07,0.00021917,2]
[323105818,1713667839506,-1288.07,0.00021917,2]
[323105819,1713667839518,-1288.07,0.00021917,2]
[323105820,1713667839530,-1288.07,0.00021917,2]
[323105821,1713667839538,-500.0,0.00021917,2]
[323105822,1713667839547,-530.98,0.00021917,2]
[323105823,1713667839556,-500.0,0.00021917,2]
[323105824,1713667839565,-503.92363974,0.00021917,2]
[323105825,1713667839574,-623.42691672,0.00021917,2]
[323105826,1713667839583,-500.0,0.00021917,2]
[323105827,1713667839592,-501.28946218,0.00021917,2]
[323105828,1713667839601,-177.26891117,0.00021917,2]
[323105829,1713667839611,-500.0,0.00021917,2]
[323105830,1713667839620,-506.76271407,0.00021917,2]
[323105831,1713667839631,-500.0,0.00021917,2]
[323105832,1713667839641,-500.0,0.00021917,2]
[323105833,1713667839652,-500.0,0.00021917,2]
[323105834,1713667839662,-500.0,0.00021917,2]
[323105835,1713667839672,-500.0,0.00021917,2]
[323105836,1713667839682,-500.0,0.00021917,2]
[323105837,1713667839690,-500.0,0.00021917,2]
[323105838,1713667839699,-500.0,0.00021917,2]
[323105839,1713667839709,-199.58755225,0.00021917,2]
[323105840,1713667839718,-500.0,0.00021917,2]
[323105841,1713667839727,-500.0,0.00021917,2]
[323105842,1713667839736,-500.0,0.00021917,2]
[323105843,1713667839745,-500.0,0.00021917,2]
[323105844,1713667839755,-500.0,0.00021917,2]
[323105845,1713667839764,-500.0,0.00021917,2]
[323105846,1713667839777,-500.0,0.00021917,2]
[323105847,1713667839786,-500.0,0.00021917,2]
[323105848,1713667839801,-500.0,0.00021917,2]
[323105849,1713667839810,-500.0,0.00021917,2]
[323105850,1713667839819,-500.0,0.00021917,2]
[323105851,1713667839829,-500.0,0.00021917,2]
[323105852,1713667839839,-500.0,0.00021917,2]
[323105853,1713667839848,-500.0,0.00021917,2]
[323105854,1713667839857,-500.0,0.00021917,2]
[323105856,1713667839869,-505.99335438,0.00021917,2]
[323105859,1713667839878,-500.0,0.00021917,2]
[323105860,1713667839888,-500.0,0.00021917,2]
[323105862,1713667839897,-500.0,0.00021917,2]
[323105865,1713667839908,-500.0,0.00021917,2]
[323105866,1713667839917,-500.0,0.00021917,2]
[323105868,1713667839926,-505.67309386,0.00021917,2]
[323105870,1713667839935,-501.33070458,0.00021917,2]
[323105872,1713667839945,-500.0,0.00021917,2]
[323105874,1713667839954,-449.42366991,0.00021917,2]
[323105876,1713667839963,-500.0,0.00021917,2]
[323105878,1713667839973,-151.0,0.00021917,2]
[323105880,1713667839982,-151.0,0.00021917,2]
[323105881,1713667839991,-151.0,0.00021917,2]
[323105882,1713667840000,-500.0,0.00021917,2]
[323105884,1713667840010,-504.51282419,0.00021917,2]
[323105886,1713667840021,-519.06561333,0.00021917,2]
[323105888,1713667840032,-500.0,0.00021917,2]
[323105889,1713667840041,-502.27345387,0.00021917,2]
[323105890,1713667840051,-151.0,0.00021917,2]
[323105892,1713667840060,-151.0,0.00021917,2]
[323105893,1713667840069,-151.0,0.00021917,2]
[323105894,1713667840079,-500.0,0.00021917,2]
[323105895,1713667840088,-502.26605598,0.00021917,2]
[323105896,1713667840097,-504.8838219,0.00021917,2]
[323105897,1713667840105,-500.0,0.00021917,2]
[323105898,1713667840114,-538.13601584,0.00021917,2]
[323105899,1713667840123,-500.0,0.00021917,2]
[323105900,1713667840132,-489.43358401,0.00021917,2]
[323105901,1713667840142,-500.0,0.00021917,2]
[323105902,1713667840151,-420.27810903,0.00021917,2]
[323105903,1713667840159,-500.0,0.00021917,2]
[323105904,1713667840169,-500.0,0.00021917,2]
[323105905,1713667840178,-500.0,0.00021917,2]
[323105906,1713667840187,-500.0,0.00021917,2]
[323105907,1713667840197,-500.0,0.00021917,2]
[323105908,1713667840206,-500.0,0.00021917,2]
[323105909,1713667840215,-500.0,0.00021917,2]
[323105911,1713667840224,-500.0,0.00021917,2]
[323105913,1713667840234,-500.0,0.00021917,2]
[323105914,1713667840243,-500.0,0.00021917,2]
[323105915,1713667840252,-500.0,0.00021917,2]
[323105916,1713667840261,-500.0,0.00021917,2]
[323105917,1713667840272,-500.0,0.00021917,2]
[323105918,1713667840280,-1003.17,0.00021917,2]
[323105919,1713667840289,-500.0,0.00021917,2]
[323105920,1713667840298,-500.0,0.00021917,2]
[323105921,1713667840307,-535.61717741,0.00021917,2]
[323105922,1713667840316,-282.05131261,0.00021917,2]
[323105923,1713667840325,-501.58329463,0.00021917,2]
[323105924,1713667840334,-151.0,0.00021917,2]
[323105925,1713667840343,-151.0,0.00021917,2]
[323105926,1713667840353,-542.2,0.00021917,2]
[323105927,1713667840362,-159.875079,0.00021917,2]
[323105928,1713667840371,-500.0,0.00021917,2]
[323105930,1713667840380,-500.0,0.00021917,2]
[323105932,1713667840389,-202.67113236,0.00021917,2]
[323105934,1713667840399,-500.0,0.00021917,2]
[323105935,1713667840408,-1271.16,0.00021917,2]
[323105936,1713667840417,-501.72732864,0.00021917,2]
[323105937,1713667840427,-500.0,0.00021917,2]
[323105938,1713667840436,-509.1765878,0.00021917,2]
[323105939,1713667840446,-500.0,0.00021917,2]
[323105940,1713667840455,-1663.13,0.00021917,2]
[323105941,1713667840464,-869.55,0.00021917,2]
[323105942,1713667840473,-500.85200865,0.00021917,2]
[323105943,1713667840482,-500.0,0.00021917,2]
[323105944,1713667840491,-500.0,0.00021917,2]
[323105945,1713667840500,-500.0,0.00021917,2]
[323105946,1713667840509,-500.0,0.00021917,2]
[323105947,1713667840518,-502.12639639,0.00021917,2]
[323105948,1713667840528,-500.0,0.00021917,2]
[323105949,1713667840537,-500.0,0.00021917,2]
[323105950,1713667840546,-602.17667516,0.00021917,2]
[323105951,1713667840554,-500.0,0.00021917,2]
[323105952,1713667840564,-500.0,0.00021917,2]
[323105953,1713667840574,-500.0,0.00021917,2]
[323105954,1713667840584,-500.0,0.00021917,2]
[323105955,1713667840593,-500.0,0.00021917,2]
[323105956,1713667840603,-319.458457,0.00021917,2]
[323105957,1713667840612,-319.458457,0.00021917,2]
[323105958,1713667840622,-319.458457,0.00021917,2]
[323105959,1713667840631,-319.458457,0.00021917,2]
[323105960,1713667840640,-500.0,0.00021917,2]
[323105961,1713667840649,-319.458457,0.00021917,2]
[323105962,1713667840658,-319.458457,0.00021917,2]
[323105963,1713667840667,-2111.6,0.00021917,2]
[323105964,1713667840677,-837.44,0.00021917,2]
[323105965,1713667840686,-319.458457,0.00021917,2]
[323105966,1713667840695,-319.458457,0.00021917,2]
[323105967,1713667840704,-319.458457,0.00021917,2]
[323105968,1713667840713,-500.0,0.00021917,2]
[323105969,1713667840723,-319.458457,0.00021917,2]
[323105970,1713667840732,-319.458457,0.00021917,2]
[323105971,1713667840741,-319.458457,0.00021917,2]
[323105972,1713667840751,-506.4130942,0.00021917,2]
[323105973,1713667840761,-505.17159039,0.00021917,2]
[323105974,1713667840772,-500.0,0.00021917,2]
[323105975,1713667840783,-503.63579584,0.00021917,2]
[323105976,1713667840795,-541.63,0.00021917,2]
[323105977,1713667840805,-500.0,0.00021917,2]
[323105978,1713667840817,-504.62172337,0.00021917,2]
[323105979,1713667840827,-502.78488687,0.00021917,2]
[323105980,1713667840837,-500.0,0.00021917,2]
[323105981,1713667840848,-500.0,0.00021917,2]
[323105982,1713667840858,-502.16336368,0.00021917,2]
[323105983,1713667840868,-521.96962028,0.00021917,2]
[323105984,1713667840878,-500.0,0.00021917,2]
[323105985,1713667840887,-500.0,0.00021917,2]
[323105986,1713667840896,-500.0,0.00021917,2]
[323105987,1713667840905,-500.0,0.00021917,2]
[323105988,1713667840914,-503.3669048,0.00021917,2]
[323105989,1713667840924,-212.525031,0.00021917,2]
[323105990,1713667840932,-366.32830987,0.00021917,2]
[323105991,1713667840941,-387.10172038,0.00021917,2]
[323105992,1713667840950,-500.0,0.00021917,2]
[323105993,1713667840960,-605.34244902,0.00021917,2]
[323105994,1713667840969,-500.0,0.00021917,2]
[323105995,1713667840978,-500.0,0.00021917,2]
[323105996,1713667840987,-500.53621885,0.00021917,2]
[323105997,1713667841001,-500.0,0.00021917,2]
[323105998,1713667841010,-500.0,0.00021917,2]
[323105999,1713667841019,-505.74617436,0.00021917,2]
[323106000,1713667841028,-500.0,0.00021917,2]
[323106001,1713667841036,-502.94306329,0.00021917,2]
[323106002,1713667841047,-500.0,0.00021917,2]
[323106003,1713667841057,-500.95630734,0.00021917,2]
[323106004,1713667841067,-500.0,0.00021917,2]
[323106005,1713667841077,-500.0,0.00021917,2]
[323106006,1713667841088,-519.82434357,0.00021917,2]
[323106007,1713667841097,-507.76544613,0.00021917,2]
[323106008,1713667841107,-500.0,0.00021917,2]
[323106009,1713667841116,-508.09085633,0.00021917,2]
[323106010,1713667841126,-500.0,0.00021917,2]
[323106011,1713667841135,-503.69131818,0.00021917,2]
[323106012,1713667841144,-151.0,0.00021917,2]
[323106013,1713667841155,-151.0,0.00021917,2]
[323106014,1713667841164,-151.0,0.00021917,2]
[323106015,1713667841173,-151.0,0.00021917,2]
[323106016,1713667841182,-151.0,0.00021917,2]
[323106017,1713667841191,-151.0,0.00021917,2]
[323106018,1713667841201,-520.08365609,0.00021917,2]
[323106019,1713667841210,-500.0,0.00021917,2]
[323106020,1713667841219,-151.0,0.00021917,2]
[323106021,1713667841231,-151.0,0.00021917,2]
[323106022,1713667841241,-209.713087,0.00021917,2]
[323106023,1713667841250,-505.80892022,0.00021917,2]
[323106024,1713667841259,-500.0,0.00021917,2]
[323106025,1713667841269,-500.0,0.00021917,2]
[323106026,1713667841278,-500.0,0.00021917,2]
[323106027,1713667841287,-211.949389,0.00021917,2]
[323106028,1713667841296,-501.92733579,0.00021917,2]
[323106029,1713667841305,-211.949389,0.00021917,2]
[323106030,1713667841314,-509.22632447,0.00021917,2]
[323106031,1713667841323,-211.949389,0.00021917,2]
[323106032,1713667841333,-211.949389,0.00021917,2]
[323106033,1713667841342,-211.949389,0.00021917,2]
[323106034,1713667841352,-211.949389,0.00021917,2]
[323106035,1713667841443,-211.949389,0.00021917,2]
[323106036,1713667841453,-506.67405108,0.00021917,2]
[323106037,1713667841462,-500.0,0.00021917,2]
[323106038,1713667841471,-211.949389,0.00021917,2]
[323106039,1713667841480,-211.949389,0.00021917,2]
[323106040,1713667841489,-211.949389,0.00021917,2]
[323106041,1713667841499,-211.949389,0.00021917,2]
[323106042,1713667841509,-171.94624928,0.00021917,2]
[323106043,1713667841520,-211.949389,0.00021917,2]
[323106044,1713667841530,-211.949389,0.00021917,2]
[323106045,1713667841540,-500.0,0.00021917,2]
[323106046,1713667841550,-211.949389,0.00021917,2]
[323106047,1713667841560,-500.0,0.00021917,2]
[323106048,1713667841572,-500.0,0.00021917,2]
[323106049,1713667841582,-500.0,0.00021917,2]
[323106050,1713667841592,-2580.78,0.00021917,2]
[323106051,1713667841604,-2580.78,0.00021917,2]
[323106052,1713667841614,-2580.78,0.00021917,2]
[323106053,1713667841624,-500.0,0.00021917,2]
[323106054,1713667841635,-2580.78,0.00021917,2]
[323106055,1713667841648,-2580.78,0.00021917,2]
[323106056,1713667841658,-2580.78,0.00021917,2]
[323106057,1713667841671,-2580.78,0.00021917,2]
[323106058,1713667841680,-2580.78,0.00021917,2]
[323106059,1713667841690,-503.94461939,0.00021917,2]
[323106060,1713667841702,-500.0,0.00021917,2]
[323106061,1713667841712,-1260.51,0.00021917,2]
[323106062,1713667841721,-517.52195072,0.00021917,2]
[323106063,1713667841731,-500.0,0.00021917,2]
[323106064,1713667841742,-500.0,0.00021917,2]
[323106065,1713667841751,-500.0,0.00021917,2]
[323106066,1713667841761,-975.19,0.00021917,2]
[323106067,1713667841772,-879.92,0.00021917,2]
[323106068,1713667841782,-503.29172424,0.00021917,2]
[323106069,1713667841795,-508.57710714,0.00021917,2]
[323106070,1713667841806,-500.0,0.00021917,2]
[323106071,1713667841816,-500.0,0.00021917,2]
[323106072,1713667841827,-500.0,0.00021917,2]
[323106073,1713667841838,-459.27032748,0.00021917,2]
[323106074,1713667841848,-173.39017946,0.00021917,2]
[323106075,1713667841860,-441.65451695,0.00021917,2]
[323106076,1713667841873,-500.0,0.00021917,2]
[323106077,1713667841884,-500.0,0.00021917,2]
[323106078,1713667841894,-500.0,0.00021917,2]
[323106079,1713667841904,-151.0,0.00021917,2]
[323106080,1713667841915,-152.063389,0.00021917,2]
[323106081,1713667841925,-500.0,0.00021917,2]
[323106082,1713667841935,-151.0,0.00021917,2]
[323106083,1713667841945,-151.0,0.00021917,2]
[323106084,1713667841953,-151.0,0.00021917,2]
[323106085,1713667841963,-151.0,0.00021917,2]
[323106086,1713667841973,-158.330461,0.00021917,2]
[323106087,1713667841985,-500.0,0.00021917,2]
[323106088,1713667841995,-1994.81,0.00021917,2]
[323106089,1713667842006,-500.0,0.00021917,2]
[323106090,1713667842015,-500.0,0.00021917,2]
[323106091,1713667842027,-500.0,0.00021917,2]
[323106092,1713667842038,-151.0,0.00021917,2]
[323106093,1713667842048,-161.110096,0.00021917,2]
[323106094,1713667842058,-500.0,0.00021917,2]
[323106095,1713667842069,-501.02751217,0.00021917,2]
[323106096,1713667842079,-500.0,0.00021917,2]
[323106097,1713667842090,-500.0,0.00021917,2]
[323106098,1713667842102,-1124.93,0.00021917,2]
[323106099,1713667842114,-500.0,0.00021917,2]
[323106100,1713667842125,-500.0,0.00021917,2]
[323106101,1713667842135,-151.0,0.00021917,2]
[323106102,1713667842146,-151.0,0.00021917,2]
[323106103,1713667842156,-151.0,0.00021917,2]
[323106104,1713667842167,-151.0,0.00021917,2]
[323106105,1713667842176,-151.0,0.00021917,2]
[323106106,1713667842186,-500.0,0.00021917,2]
[323106107,1713667842196,-151.0,0.00021917,2]
[323106108,1713667842206,-500.0,0.00021917,2]
[323106109,1713667842216,-151.0,0.00021917,2]
[323106110,1713667842226,-151.0,0.00021917,2]
[323106111,1713667842236,-500.0,0.00021917,2]
[323106112,1713667842245,-1282.28,0.00021917,2]
[323106113,1713667842255,-206.59556357,0.00021917,2]
[323106114,1713667842265,-527.5925423,0.00021917,2]
[323106115,1713667842276,-500.0,0.00021917,2]
[323106116,1713667842285,-500.0,0.00021917,2]
[323106117,1713667842295,-500.0,0.00021917,2]
[323106118,1713667842304,-500.0,0.00021917,2]
[323106119,1713667842315,-500.0,0.00021917,2]
[323106120,1713667842324,-500.0,0.00021917,2]
[323106121,1713667842334,-500.0,0.00021917,2]
[323106122,1713667842343,-500.0,0.00021917,2]
[323106123,1713667842353,-500.0,0.00021917,2]
[323106124,1713667842363,-500.0,0.00021917,2]
[323106125,1713667842372,-500.0,0.00021917,2]
[323106126,1713667842381,-500.0,0.00021917,2]
[323106127,1713667842391,-503.83505764,0.00021917,2]
[323106128,1713667842401,-501.56761405,0.00021917,2]
[323106129,1713667842410,-500.0,0.00021917,2]
[323106130,1713667842419,-500.0,0.00021917,2]
[323106131,1713667842429,-151.0,0.00021917,2]
[323106132,1713667842439,-506.06553323,0.00021917,2]
[323106133,1713667842449,-151.0,0.00021917,2]
[323106134,1713667842459,-159.557445,0.00021917,2]
[323106135,1713667842469,-565.1072154,0.00021917,2]
[323106136,1713667842479,-527.11651235,0.00021917,2]
[323106137,1713667842488,-500.0,0.00021917,2]
[323106138,1713667842498,-500.0,0.00021917,2]
[323106139,1713667842507,-508.91488848,0.00021917,2]
[323106140,1713667842519,-500.0,0.00021917,2]
[323106141,1713667842527,-502.51729193,0.00021917,2]
[323106142,1713667842536,-506.95962163,0.00021917,2]
[323106143,1713667842545,-500.0,0.00021917,2]
[323106144,1713667842554,-501.10542923,0.00021917,2]
[323106145,1713667842564,-500.0,0.00021917,2]
[323106146,1713667842573,-505.86358156,0.00021917,2]
[323106147,1713667842583,-541.14793866,0.00021917,2]
[323106148,1713667842592,-504.75483394,0.00021917,2]
[323106149,1713667842601,-500.0,0.00021917,2]
[323106150,1713667842611,-500.0,0.00021917,2]
[323106151,1713667842620,-380.44564795,0.00021917,2]
[323106152,1713667842630,-500.0,0.00021917,2]
[323106153,1713667842639,-616.02270007,0.00021917,2]
[323106154,1713667842648,-500.0,0.00021917,2]
[323106155,1713667842658,-500.0,0.00021917,2]
[323106156,1713667842667,-500.0,0.00021917,2]
[323106157,1713667842676,-407.13978029,0.00021917,2]
[323106158,1713667842686,-500.0,0.00021917,2]
[323106159,1713667842695,-509.03636425,0.00021917,2]
[323106160,1713667842704,-503.49389116,0.00021917,2]
[323106161,1713667842713,-504.8112612,0.00021917,2]
[323106162,1713667842723,-500.0,0.00021917,2]
[323106163,1713667842732,-285.22719,0.00021917,2]
[323106164,1713667842742,-500.0,0.00021917,2]
[323106165,1713667842752,-285.22719,0.00021917,2]
[323106166,1713667842761,-587.09914745,0.00021917,2]
[323106167,1713667842771,-285.22719,0.00021917,2]
[323106168,1713667842780,-285.22719,0.00021917,2]
[323106169,1713667842790,-500.0,0.00021917,2]
[323106170,1713667842802,-285.22719,0.00021917,2]
[323106172,1713667842811,-285.22719,0.00021917,2]
[323106174,1713667842820,-285.22719,0.00021917,2]
[323106175,1713667842830,-285.22719,0.00021917,2]
[323106176,1713667842839,-285.22719,0.00021917,2]
[323106177,1713667842848,-500.0,0.00021917,2]
[323106178,1713667842857,-285.22719,0.00021917,2]
[323106179,1713667842866,-500.0,0.00021917,2]
[323106180,1713667842876,-285.22719,0.00021917,2]